lending/lending_fUSD_20250424
["ID","MTS","AMOUNT","RATE_DAILY","PERIOD"]
[358900447,1745535056198,-209.32159431,0.0004264,6]
[358900448,1745535056208,-209.32159431,0.00042643,6]
[358900449,1745535056218,-820.10966819,0.00042644,6]
[358900450,1745535056229,-354.78236323,0.00042644,6]
[358900451,1745535056239,-209.32159431,0.00042645,6]
[358900452,1745535056249,-205.02741701,0.00042645,6]
[358900453,1745535056259,-4796.24777151,0.00042646,6]
[358900454,1745535056269,-4808.36775724,0.0004265,6]
[358900455,1745535056279,-758.56387675,0.0004265,6]
[358900456,1745535056290,-216.21073231,0.00042651,6]
[358900457,1745535056300,-373.31789394,0.00042652,6]
[358900458,1745535056311,-205.02741701,0.00042652,6]
[358900459,1745535056321,-1821.24744163,0.00042657,6]
[358900460,1745535056332,-373.31789394,0.00042666,6]
[358900461,1745535056343,-152.0,0.00042667,6]
[358900462,1745535056354,-5087.97408547,0.00042671,6]
[358900463,1745535056365,-373.31789394,0.00042674,6]
[358900464,1745535056376,-1400.0,0.00042679,30]
[358900465,1745535056386,-1032.63808833,0.00042682,6]
[358900466,1745535056396,-2931.56385326,0.00042684,6]
[358900467,1745535056408,-4796.24777151,0.00042685,6]
[358900468,1745535056420,-723.20721649,0.00042686,6]
[358900469,1745535056432,-200.0,0.0004269,6]
[358900470,1745535056443,-236.86448217,0.00042691,6]
[358900471,1745535056452,-3347.03857724,0.00042692,6]
[358900472,1745535056463,-758.56387675,0.00042695,6]
[358900473,1745535056473,-1032.63808833,0.00042699,6]
[358900474,1745535056484,-1668.15877397,0.000427,6]
[358900475,1745535056495,-975.54474488,0.000427,120]
[358900476,1745535056505,-500.0,0.00042701,30]
[358900477,1745535056515,-205.02741701,0.00042703,6]
[358900478,1745535056525,-354.78236323,0.00042706,6]
[358900479,1745535056535,-216.21073231,0.00042706,6]
[358900480,1745535056546,-354.78236323,0.00042708,6]
[358900481,1745535056556,-664.54518962,0.00042712,6]
[358900482,1745535056566,-820.10966819,0.00042714,6]
[358900483,1745535056576,-4808.36775724,0.00042715,6]
[358900484,1745535056587,-758.56387675,0.00042716,6]
[358900485,1745535056597,-987.37638026,0.00042719,6]
[358900486,1745535056607,-3347.03857724,0.0004272,6]
[358900487,1745535056618,-3347.03857724,0.00042721,6]
[358900488,1745535056628,-3001.90471043,0.00042721,6]
[358900489,1745535056640,-758.56387675,0.00042726,6]
[358900490,1745535056650,-200.0,0.00042728,6]
[358900491,1745535056660,-2658.18075865,0.00042728,6]
[358900492,1745535056671,-236.86448217,0.00042728,6]
[358900493,1745535056681,-2931.56385326,0.00042728,6]
[358900494,1745535056691,-3001.90471043,0.00042729,6]
[358900495,1745535056701,-4796.24777151,0.00042729,6]
[358900496,1745535056712,-200.0,0.00042731,6]
[358900497,1745535056721,-265.44057908,0.00042733,6]
[358900498,1745535056731,-1032.63808833,0.00042739,6]
[358900499,1745535056742,-4796.24777151,0.0004274,6]
[358900500,1745535056752,-820.10966819,0.0004274,6]
[358900501,1745535056765,-1000.0,0.0004274,14]
[358900502,1745535056776,-702.0,0.0004274,14]
[358900503,1745535056788,-1000.0,0.0004274,14]
[358900504,1745535056799,-243.26636695,0.0004274,2]
[358900505,1745535056810,-500.0,0.0004274,2]
[358900506,1745535056822,-583.0,0.0004274,2]
[358900507,1745535056832,-2658.18075865,0.00042741,6]
[358900508,1745535056842,-723.20721649,0.0004275,6]
[358900509,1745535056852,-1524.375515,0.0004275,59]
[358900510,1745535056863,-664.54518962,0.00042754,6]
[358900511,1745535056873,-200.0,0.00042754,6]
[358900512,1745535056883,-236.86448217,0.00042754,6]
[358900513,1745535057167,-200.0,0.00042754,6]
[358900514,1745535057179,-1032.63808833,0.00042754,6]
[358900515,1745535057188,-150.0,0.00042756,30]
[358900516,1745535057199,-1032.63808833,0.00042757,6]
[358900517,1745535057209,-205.02741701,0.00042761,6]
[358900518,1745535057221,-2658.18075865,0.00042762,6]
[358900519,1745535057231,-209.32159431,0.00042762,6]
[358900520,1745535057241,-236.86448217,0.00042763,6]
[358900521,1745535057250,-5087.97408547,0.00042764,6]
[358900522,1745535057262,-2658.18075865,0.00042765,6]
[358900523,1745535057272,-1821.24744163,0.00042767,6]
[358900524,1745535057282,-200.0,0.00042767,6]
[358900525,1745535057292,-796.0,0.00042768,2]
[358900526,1745535057302,-876.0,0.00042768,2]
[358900527,1745535057312,-3001.90471043,0.00042769,6]
[358900528,1745535057323,-354.78236323,0.00042769,6]
[358900529,1745535057334,-2931.56385326,0.00042771,6]
[358900530,1745535057343,-987.37638026,0.00042775,6]
[358900531,1745535057354,-373.31789394,0.00042778,6]
[358900532,1745535057364,-664.54518962,0.00042781,6]
[358900533,1745535057374,-4808.36775724,0.00042786,6]
[358900534,1745535057384,-5087.97408547,0.00042787,6]
[358900535,1745535057395,-500.0,0.00042788,2]
[358900536,1745535057404,-200.0,0.0004279,6]
[358900537,1745535057415,-1668.15877397,0.00042793,6]
[358900538,1745535057426,-1032.63808833,0.00042795,6]
[358900539,1745535057435,-1821.24744163,0.00042798,6]
[358900540,1745535057445,-200.0,0.00042798,6]
[358900541,1745535057455,-14782.15,0.000428,60]
[358900542,1745535057466,-1400.0,0.0004284,30]
[358900543,1745535057476,-25472.70773894,0.00042855,2]
[358900544,1745535057487,-1000.0,0.00042877,14]
[358900545,1745535057497,-150.0,0.00042904,30]
[358900546,1745535057507,-900.0,0.00042906,30]
[358900547,1745535057516,-700.0,0.0004292,30]
[358900548,1745535057527,-454.16668013,0.00042926,30]
[358900549,1745535057537,-500.0,0.00042954,30]
[358900550,1745535057547,-310.38374341,0.00042959,2]
[358900551,1745535057558,-552.58487564,0.00042963,30]
[358900552,1745535057568,-400.0,0.0004297,3]
[358900553,1745535057578,-404.23200758,0.0004297,3]
[358900554,1745535057588,-338.46803207,0.00042988,4]
[358900555,1745535057597,-26054.184,0.00042993,2]
[358900556,1745535057607,-1400.0,0.00042999,30]
[358900557,1745535057618,-50000.0,0.00043,23]
[358900558,1745535057629,-1000.0,0.00043,10]
[358900559,1745535057640,-167.51,0.00043,2]
[358900560,1745535057650,-7367.35652033,0.00043,14]
[358900561,1745535057660,-1881.94,0.00043,2]
[358900562,1745535057670,-900.0,0.00043,2]
[358900563,1745535057680,-151.0,0.00043,14]
[358900564,1745535057689,-151.0,0.00043,14]
[358900565,1745535057700,-200.0,0.00043,70]
[358900566,1745535057710,-865.47215708,0.00043,2]
[358900567,1745535057720,-200.0,0.00043,70]
[358900568,1745535057731,-1156.15,0.00043,33]
[358900569,1745535057742,-1156.15,0.00043,33]
[358900570,1745535057752,-1156.15,0.00043,33]
[358900571,1745535057762,-1156.15,0.00043,33]
[358900572,1745535057772,-1156.15,0.00043,33]
[358900573,1745535057782,-1156.15,0.00043,33]
[358900574,1745535057792,-1156.15,0.00043,33]
[358900575,1745535057802,-1156.15,0.00043,33]
[358900576,1745535057814,-1156.15,0.00043,33]
[358900577,1745535057824,-1156.15,0.00043,33]
[358900578,1745535057835,-1156.15,0.00043,33]
[358900579,1745535057847,-1156.15,0.00043,33]
[358900580,1745535057857,-1156.15,0.00043,33]
[358900581,1745535057867,-1156.15,0.00043,33]
[358900582,1745535057876,-1156.15,0.00043,33]
[358900583,1745535057887,-1156.15,0.00043,33]
[358900584,1745535057898,-1156.15,0.00043,33]
[358900585,1745535057909,-1156.15,0.00043,33]
[358900586,1745535057921,-1156.15,0.00043,33]
[358900587,1745535057931,-1156.15,0.00043,33]
[358900588,1745535057942,-1156.15,0.00043,33]
[358900589,1745535057954,-1156.15,0.00043,33]
[358900590,1745535057965,-1156.15,0.00043,33]
[358900591,1745535057975,-1156.15,0.00043,33]
[358900592,1745535057985,-507.86377957,0.00043002,30]
[358900593,1745535057994,-1000.0,0.00043014,14]
[358900594,1745535058004,-878.0,0.00043014,14]
[358900595,1745535058018,-500.0,0.00043014,2]
[358900596,1745535058028,-583.0,0.00043014,2]
[358900597,1745535058037,-959.35844091,0.00043018,60]
[358900598,1745535058048,-150.0,0.00043052,30]
[358900599,1745535058060,-1400.0,0.00043072,30]
[358900600,1745535058070,-159.37919878,0.00043074,30]
[358900601,1745535058080,-900.0,0.00043077,30]
[358900602,1745535058092,-500.0,0.00043078,30]
[358900603,1745535058102,-500.0,0.00043094,30]
[358900604,1745535058112,-900.0,0.00043111,30]
[358900605,1745535058122,-155.0,0.00043151,90]
[358900606,1745535058132,-700.0,0.00043182,30]
[358900607,1745535058142,-500.0,0.00043183,30]
[358900608,1745535058151,-150.0,0.000432,30]
[358900609,1745535058162,-372.09,0.00043209,2]
[358900610,1745535058172,-971.8327,0.00043223,3]
[358900611,1745535058182,-2000.0,0.00043223,3]
[358900612,1745535058192,-2002.1201,0.00043223,3]
[358900613,1745535058202,-2000.0,0.00043223,3]
[358900614,1745535058212,-1400.0,0.00043243,30]
[358900615,1745535058222,-150.0,0.00043259,2]
[358900616,1745535058232,-1400.0,0.00043262,30]
[358900617,1745535058243,-700.0,0.00043281,30]
[358900618,1745535058253,-500.0,0.00043283,30]
[358900619,1745535058264,-500.0,0.00043288,2]
[358900620,1745535058275,-583.0,0.00043288,2]
[358900621,1745535058287,-1400.0,0.00043302,30]
[358900622,1745535058297,-500.0,0.00043321,30]
[358900623,1745535058306,-150.0,0.00043348,30]
[358900624,1745535058316,-900.0,0.0004336,30]
[358900625,1745535058327,-700.0,0.00043361,30]
[358900626,1745535058336,-400.0,0.0004337,3]
[358900627,1745535058347,-570.15259978,0.0004337,3]
[358900628,1745535058358,-1400.0,0.00043397,30]
[358900629,1745535058368,-1400.0,0.00043404,30]
[358900630,1745535058377,-216.0,0.0004344,30]
[358900631,1745535058390,-211.0,0.0004344,30]
[358900632,1745535058399,-1400.0,0.00043483,30]
[358900633,1745535058409,-150.0,0.00043496,30]
[358900634,1745535058419,-300.084844,0.00043498,120]
[358900635,1745535058429,-700.0,0.00043527,30]
[358900636,1745535058439,-500.0,0.0004354,30]
[358900637,1745535058450,-500.0,0.00043562,2]
[358900638,1745535058460,-583.0,0.00043562,2]
[358900639,1745535058470,-900.0,0.00043565,30]
[358900640,1745535058480,-500.0,0.00043578,30]
[358900641,1745535058491,-152.0,0.00043584,7]
[358900642,1745535058502,-3908.77,0.000436,120]
[358900643,1745535058512,-997.16,0.000436,120]
[358900644,1745535058522,-150.0,0.00043644,30]
[358900645,1745535058531,-844.50723939,0.00043653,30]
[358900646,1745535058542,-509.61455883,0.00043663,30]
[358900647,1745535058551,-1400.0,0.00043669,30]
[358900648,1745535058563,-500.0,0.00043726,30]
[358900649,1745535058572,-700.0,0.00043745,30]
[358900650,1745535058583,-887.64058452,0.00043779,30]
[358900651,1745535058593,-150.0,0.00043792,30]
[358900652,1745535058603,-150.26453453,0.00043798,120]
[358900653,1745535058614,-8486.72363505,0.0004383,2]
[358900654,1745535058624,-4304.61,0.00043835,120]
[358900655,1745535058634,-150.06,0.00043836,30]
[358900656,1745535058644,-500.0,0.00043836,2]
[358900657,1745535058654,-583.0,0.00043836,2]
[358900658,1745535058664,-498.90024189,0.00043836,30]
[358900659,1745535058674,-1400.0,0.00043881,30]
[358900660,1745535058684,-151.0,0.00043881,14]
[358900661,1745535058694,-151.0,0.00043881,14]
[358900662,1745535058704,-151.0,0.00043881,14]
[358900663,1745535058714,-152.120952,0.00043881,14]
[358900664,1745535058724,-497.99755931,0.00043888,30]
[358900665,1745535058734,-150.0,0.0004394,30]
[358900666,1745535058744,-50000.0,0.00044,24]
[358900667,1745535058755,-50000.0,0.00044,12]
[358900668,1745535058764,-454.0,0.00044,2]
[358900669,1745535058774,-455.28213089,0.00044,2]
[358900670,1745535058783,-300.924166,0.00044,14]
[358900671,1745535058793,-368.188731,0.00044,14]
[358900672,1745535058802,-368.188731,0.00044,14]
[358900673,1745535058812,-454.0,0.00044,2]
[358900674,1745535058822,-151.0,0.00044,14]
[358900675,1745535058833,-151.0,0.00044,14]
[358900676,1745535058844,-200.0,0.00044,73]
[358900677,1745535058855,-200.0,0.00044,73]
[358900678,1745535058865,-151.0,0.00044,14]
[358900679,1745535058874,-388.371314,0.00044,14]
[358900680,1745535058884,-388.371314,0.00044,14]
[358900681,1745535058894,-156.937028,0.00044,14]
[358900682,1745535058904,-156.937028,0.00044,14]
[358900683,1745535058913,-286.763781,0.00044,14]
[358900684,1745535058923,-151.0,0.00044,14]
[358900685,1745535058933,-286.763781,0.00044,14]
[358900686,1745535058943,-1067.049443,0.00044,14]
[358900687,1745535058953,-282.984515,0.00044,14]
[358900688,1745535058964,-1067.049443,0.00044,14]
[358900689,1745535058974,-682.761914,0.00044,14]
[358900690,1745535058983,-682.761914,0.00044,14]
[358900691,1745535058992,-201.835686,0.00044,14]
[358900692,1745535059002,-201.835686,0.00044,14]
[358900693,1745535059015,-211.473619,0.00044,2]
[358900694,1745535059024,-151.0,0.00044,14]
[358900695,1745535059034,-211.473619,0.00044,2]
[358900696,1745535059043,-151.0,0.00044,14]
[358900697,1745535059054,-151.0,0.00044,14]
[358900698,1745535059063,-151.0,0.00044,14]
[358900699,1745535059073,-151.0,0.00044,14]
[358900700,1745535059082,-151.0,0.00044,14]
[358900701,1745535059092,-900.0,0.00044025,30]
[358900702,1745535059102,-1400.0,0.00044061,30]
[358900703,1745535059112,-900.0,0.00044077,30]
[358900704,1745535059122,-150.0,0.00044088,30]
[358900705,1745535059131,-900.0,0.00044091,30]
[358900706,1745535059140,-500.0,0.0004411,2]
[358900707,1745535059151,-583.0,0.0004411,2]
[358900708,1745535059162,-150.0,0.00044124,2]
[358900709,1745535059172,-700.0,0.00044163,30]
[358900710,1745535059182,-4194.21295422,0.00044182,15]
[358900711,1745535059191,-150.042422,0.00044198,120]
[358900712,1745535059201,-5687.47,0.000442,2]
[358900713,1745535059211,-1156.15,0.000442,36]
[358900714,1745535059221,-1156.15,0.000442,36]
[358900715,1745535059231,-1156.15,0.000442,36]
[358900716,1745535059241,-1156.15,0.000442,36]
[358900717,1745535059251,-1156.15,0.000442,36]
[358900718,1745535059260,-1156.15,0.000442,36]
[358900719,1745535059270,-1156.15,0.000442,36]
[358900720,1745535059280,-1156.15,0.000442,36]
[358900721,1745535059290,-1156.15,0.000442,36]
[358900722,1745535059300,-1156.15,0.000442,36]
[358900723,1745535059310,-1156.15,0.000442,36]
[358900724,1745535059320,-1156.15,0.000442,36]
[358900725,1745535059330,-1156.15,0.000442,36]
[358900726,1745535059340,-1156.15,0.000442,36]
[358900727,1745535059350,-1156.15,0.000442,36]
[358900728,1745535059359,-1156.15,0.000442,36]
[358900729,1745535059369,-1156.15,0.000442,36]
[358900730,1745535059379,-1156.15,0.000442,36]
[358900731,1745535059389,-1156.15,0.000442,36]
[358900732,1745535059399,-1156.15,0.000442,36]
[358900733,1745535059409,-1156.15,0.000442,36]
[358900734,1745535059419,-1156.15,0.000442,36]
[358900735,1745535059429,-1156.15,0.000442,36]
[358900736,1745535059439,-1156.15,0.000442,36]
[358900737,1745535059450,-150.0,0.00044236,30]
[358900738,1745535059461,-900.0,0.00044278,30]
[358900739,1745535059471,-1400.0,0.00044282,30]
[358900740,1745535059481,-1226.052385,0.00044282,90]
[358900741,1745535059491,-500.0,0.00044289,30]
[358900742,1745535059501,-151.0,0.00044289,14]
[358900743,1745535059512,-151.0,0.00044289,14]
[358900744,1745535059522,-155.662356,0.00044289,14]
[358900745,1745535059531,-152.120952,0.00044289,14]
[358900746,1745535059649,-700.0,0.00044295,30]
[358900747,1745535059660,-167.51,0.000443,2]
[358900748,1745535059671,-1881.94,0.000443,2]
[358900749,1745535059681,-150.0,0.00044384,30]
[358900750,1745535059691,-500.0,0.00044384,2]
[358900751,1745535059701,-583.0,0.00044384,2]
[358900752,1745535059711,-865.7355,0.00044384,7]
[358900753,1745535059720,-1400.0,0.00044395,30]
[358900754,1745535059731,-3600.0,0.000444,2]
[358900755,1745535059742,-900.0,0.00044405,30]
[358900756,1745535059752,-900.0,0.00044414,30]
[358900757,1745535059762,-700.0,0.00044428,30]
[358900758,1745535059771,-157.7046242,0.00044453,4]
[358900759,1745535059781,-700.0,0.00044485,30]
[358900760,1745535059791,-150.042422,0.00044498,120]
[358900761,1745535059801,-500.0,0.00044498,30]
[358900762,1745535059811,-152.0,0.000445,8]
[358900763,1745535059820,-150.0,0.00044532,30]
[358900764,1745535059829,-500.0,0.00044658,2]
[358900765,1745535059839,-583.0,0.00044658,2]
[358900766,1745535059848,-1400.0,0.00044664,30]
[358900767,1745535059858,-150.0,0.00044679,30]
[358900768,1745535059867,-25000.0,0.000447,14]
[358900769,1745535059876,-173.383666,0.000447,14]
[358900770,1745535059886,-150.0,0.00044768,120]
[358900771,1745535059896,-900.0,0.00044784,30]
[358900772,1745535059906,-150.0,0.00044797,3]
[358900773,1745535059915,-300.084844,0.00044798,120]
[358900774,1745535059924,-259.72065,0.00044815,30]
[358900775,1745535059934,-1400.0,0.00044825,30]
[358900776,1745535059943,-150.0,0.00044827,30]
[358900777,1745535059953,-1118.08,0.00044854,120]
[358900778,1745535059962,-3185.43721074,0.00044883,17]
[358900779,1745535059972,-151.0,0.00044883,14]
[358900780,1745535059981,-151.0,0.00044883,14]
[358900781,1745535059991,-264.130984,0.00044883,14]
[358900782,1745535060000,-7556.635357,0.00044883,7]
[358900783,1745535060010,-2825.749613,0.00044883,7]
[358900784,1745535060023,-1435.325112,0.00044883,7]
[358900785,1745535060033,-500.0,0.00044888,30]
[358900786,1745535060043,-150.0,0.000449,9]
[358900787,1745535060055,-989.03606139,0.00044907,30]
[358900788,1745535060064,-500.0,0.00044932,2]
[358900789,1745535060075,-583.0,0.00044932,2]
[358900790,1745535060086,-500.0,0.00044933,30]
[358900791,1745535060096,-150.0,0.00044975,30]
[358900792,1745535060106,-150.0,0.00044989,2]
[358900793,1745535060116,-168352.11178084,0.00045,31]
[358900794,1745535060126,-964.0071434,0.00045,2]
[358900795,1745535060136,-29210.26401073,0.00045,7]
[358900796,1745535060146,-50000.0,0.00045,11]
[358900797,1745535060155,-2000.0,0.00045,5]
[358900798,1745535060165,-1380.75,0.00045,5]
[358900799,1745535060176,-574.6219,0.00045,7]
[358900800,1745535060186,-1000.0,0.00045,2]
[358900801,1745535060195,-5215.7847015,0.00045,7]
[358900802,1745535060206,-950.0,0.00045,2]
[358900803,1745535060215,-151.0,0.00045,120]
[358900804,1745535060225,-454.0,0.00045,30]
[358900805,1745535060235,-200.0,0.00045,76]
[358900806,1745535060245,-200.0,0.00045,76]
[358900807,1745535060255,-196.156509,0.00045,14]
[358900808,1745535060264,-388.371314,0.00045,14]
[358900809,1745535060274,-388.371314,0.00045,14]
[358900810,1745535060284,-156.937028,0.00045,14]
[358900811,1745535060295,-156.937028,0.00045,14]
[358900812,1745535060305,-286.763781,0.00045,14]
[358900813,1745535060315,-151.0,0.00045,14]
[358900814,1745535060324,-286.763781,0.00045,14]
[358900815,1745535060335,-1067.049443,0.00045,14]
[358900816,1745535060345,-1067.049443,0.00045,14]
[358900817,1745535060355,-682.761914,0.00045,14]
[358900818,1745535060364,-682.761914,0.00045,14]
[358900819,1745535060374,-201.835686,0.00045,14]
[358900820,1745535060383,-201.835686,0.00045,14]
[358900821,1745535060393,-211.473619,0.00045,2]
[358900822,1745535060402,-151.0,0.00045,14]
[358900823,1745535060412,-211.473619,0.00045,2]
[358900824,1745535060421,-151.0,0.00045,14]
[358900825,1745535060431,-151.0,0.00045,14]
[358900826,1745535060440,-500.0,0.00045,120]
[358900827,1745535060450,-968.71293827,0.00045007,30]
[358900828,1745535060460,-259.72065,0.00045015,30]
[358900829,1745535060471,-500.0,0.00045047,30]
[358900830,1745535060480,-700.0,0.0004509,30]
[358900831,1745535060490,-500.0,0.00045122,30]
[358900832,1745535060499,-150.0,0.00045123,30]
[358900833,1745535060509,-17032.96,0.000452,120]
[358900834,1745535060518,-368.188731,0.00045205,14]
[358900835,1745535060528,-368.188731,0.00045205,14]
[358900836,1745535060537,-4304.61,0.00045205,120]
[358900837,1745535060547,-151.0,0.00045205,14]
[358900838,1745535060556,-151.0,0.00045205,14]
[358900839,1745535060565,-151.0,0.00045205,14]
[358900840,1745535060575,-151.0,0.00045205,14]
[358900841,1745535060584,-151.0,0.00045205,14]
[358900842,1745535060594,-151.0,0.00045205,14]
[358900843,1745535060603,-151.0,0.00045205,14]
[358900844,1745535060612,-151.0,0.00045205,14]
[358900845,1745535060621,-151.0,0.00045205,14]
[358900846,1745535060631,-151.0,0.00045205,14]
[358900847,1745535060640,-151.0,0.00045205,14]
[358900848,1745535060650,-151.0,0.00045205,14]
[358900849,1745535060659,-151.0,0.00045205,14]
[358900850,1745535060668,-151.0,0.00045205,14]
[358900851,1745535060677,-151.0,0.00045205,14]
[358900852,1745535060687,-151.0,0.00045205,14]
[358900853,1745535060696,-500.0,0.00045206,2]
[358900854,1745535060706,-583.0,0.00045206,2]
[358900855,1745535060715,-259.72065,0.00045215,30]
[358900856,1745535060725,-1400.0,0.00045221,30]
[358900857,1745535060735,-630.66055,0.0004526,7]
[358900858,1745535060745,-900.0,0.00045263,30]
[358900859,1745535060754,-150.0,0.00045271,30]
[358900860,1745535060763,-1156.15,0.000453,39]
[358900861,1745535060772,-1156.15,0.000453,39]
[358900862,1745535060782,-1156.15,0.000453,39]
[358900863,1745535060792,-1156.15,0.000453,39]
[358900864,1745535060801,-1156.15,0.000453,39]
[358900865,1745535060811,-1156.15,0.000453,39]
[358900866,1745535060820,-1156.15,0.000453,39]
[358900867,1745535060829,-1156.15,0.000453,39]
[358900868,1745535060838,-1156.15,0.000453,39]
[358900869,1745535060848,-1156.15,0.000453,39]
[358900870,1745535060858,-1156.15,0.000453,39]
[358900871,1745535060867,-1156.15,0.000453,39]
[358900872,1745535060877,-1156.15,0.000453,39]
[358900873,1745535060886,-1156.15,0.000453,39]
[358900874,1745535060896,-1156.15,0.000453,39]
[358900875,1745535060907,-1156.15,0.000453,39]
[358900876,1745535060916,-1156.15,0.000453,39]
[358900877,1745535060925,-1156.15,0.000453,39]
[358900878,1745535060935,-1156.15,0.000453,39]
[358900879,1745535060944,-1156.15,0.000453,39]
[358900880,1745535060954,-1156.15,0.000453,39]
[358900881,1745535060963,-1156.15,0.000453,39]
[358900882,1745535060972,-1156.15,0.000453,39]
[358900883,1745535060981,-1156.15,0.000453,39]
[358900884,1745535060990,-156.0,0.00045308,90]
[358900885,1745535061000,-6071.2872733,0.00045321,2]
[358900886,1745535061010,-500.0,0.00045355,30]
[358900887,1745535061021,-1000.0,0.00045395,2]
[358900888,1745535061030,-259.72065,0.00045415,30]
[358900889,1745535061040,-152.0,0.00045417,9]
[358900890,1745535061050,-150.0,0.00045419,30]
[358900891,1745535061059,-522.85527375,0.00045445,30]
[358900892,1745535061069,-372.09,0.00045473,2]
[358900893,1745535061079,-500.0,0.0004548,2]
[358900894,1745535061089,-583.0,0.0004548,2]
[358900895,1745535061098,-1400.0,0.0004551,30]
[358900896,1745535061107,-150.0,0.00045567,30]
[358900897,1745535061117,-10044.80848369,0.000456,5]
[358900898,1745535061127,-903.04262674,0.000456,30]
[358900899,1745535061136,-900.0,0.00045606,30]
[358900900,1745535061147,-259.72065,0.00045615,30]
[358900901,1745535061157,-1400.0,0.00045632,30]
[358900902,1745535061166,-489.16,0.00045679,7]
[358900903,1745535061175,-2000.0,0.00045679,7]
[358900904,1745535061184,-3000.0,0.00045679,7]
[358900905,1745535061194,-900.0,0.00045698,30]
[358900906,1745535061204,-2681.90535399,0.00045709,30]
[358900907,1745535061214,-150.0,0.00045715,30]
[358900908,1745535061223,-457.47737139,0.00045753,2]
[358900909,1745535061233,-583.0,0.00045753,2]
[358900910,1745535061243,-700.0,0.00045755,30]
[358900911,1745535061252,-796.0,0.00045768,2]
[358900912,1745535061262,-876.0,0.00045768,2]
[358900913,1745535061272,-700.0,0.00045775,30]
[358900914,1745535061281,-153.28443455,0.00045783,120]
[358900915,1745535061292,-900.0,0.00045795,30]
[358900916,1745535061301,-259.72065,0.00045815,30]
[358900917,1745535061311,-900.0,0.00045823,30]
[358900918,1745535061321,-150.0,0.00045854,2]
[358900919,1745535061330,-150.95507873,0.00045863,30]
[358900920,1745535061340,-394.20761132,0.00045873,7]
[358900921,1745535061350,-244.2623681,0.00045883,2]
[358900922,1745535061360,-162.84157873,0.00045883,2]
[358900923,1745535061369,-165.27,0.00045883,120]
[358900924,1745535061378,-367.01485929,0.00045883,58]
[358900925,1745535061388,-151.0,0.00045883,14]
[358900926,1745535061397,-151.0,0.00045883,14]
[358900927,1745535061407,-682.761914,0.00045883,14]
[358900928,1745535061417,-682.761914,0.00045883,14]
[358900929,1745535061426,-682.761914,0.00045883,14]
[358900930,1745535061435,-682.761911,0.00045883,14]
[358900931,1745535061446,-201.835686,0.00045883,14]
[358900932,1745535061455,-201.835686,0.00045883,14]
[358900933,1745535061464,-201.835686,0.00045883,14]
[358900934,1745535061474,-201.835688,0.00045883,14]
[358900935,1745535061483,-211.473619,0.00045883,2]
[358900936,1745535061493,-211.473619,0.00045883,2]
[358900937,1745535061503,-211.473619,0.00045883,2]
[358900938,1745535061512,-211.473617,0.00045883,2]
[358900939,1745535061522,-228.241928,0.00045883,14]
[358900940,1745535061539,-151.0,0.00045883,14]
[358900941,1745535061548,-177.823237,0.00045883,14]
[358900942,1745535061558,-151.0,0.00045883,14]
[358900943,1745535061567,-151.0,0.00045883,14]
[358900944,1745535061576,-151.0,0.00045883,14]
[358900945,1745535061586,-231.832772,0.00045883,14]
[358900946,1745535061595,-151.0,0.00045883,14]